bitfinex-derivatives/quotes_SOLF0:USTF0_20250816
["timestamp","ask_amount","ask_price","bid_price","bid_amount"]
[1755381919501,2.92,188.35,188.33,2.87]
[1755381920202,2.92,188.34,188.33,2.87]
[1755381922808,2.92,188.36,188.33,2.87]
[1755381923605,2.92,188.36,188.35,2.87]
[1755381924205,2.92,188.35,188.34,2.87]
[1755381924501,2.92,188.35,188.31,2.87]
[1755381924706,2.92,188.35,188.27,2.87]
[1755381927404,2.92,188.35,188.27,8.178]
[1755381927602,2.92,188.35,188.28,2.87]
[1755381930007,2.92,188.35,188.3,3.37663745]
[1755381930307,2.92,188.39,188.31,2.87]
[1755381930507,2.92,188.37,188.31,2.87]
[1755381930705,2.92,188.35,188.31,2.87]
[1755381931103,7.30863958,188.4,188.31,2.87]
[1755381931301,2.92,188.38,188.31,2.87]
[1755381931509,2.92,188.35,188.31,2.87]
[1755381931709,2.92,188.4,188.31,2.87]
[1755381931907,2.92,188.38,188.31,2.87]
[1755381932102,4.08566801,188.37,188.31,2.87]
[1755381932302,4.08566801,188.37,188.3,3.37663745]
[1755381932303,2.92,188.34,188.3,6.24663745]
[1755381932507,2.92,188.39,188.31,2.87]
[1755381932708,2.92,188.37,188.31,2.87]
[1755381932908,2.92,188.35,188.31,2.87]
[1755381938007,2.92,188.35,188.32,2.87]
[1755381938208,2.92,188.39,188.33,2.87]
[1755381938411,2.92,188.37,188.33,2.87]
[1755381938611,2.92,188.35,188.32,1.98877111]
[1755381939813,2.92,188.35,188.31,2.87]
[1755381940012,2.92,188.35,188.29,1.98877111]
[1755381940205,2.92,188.35,188.3,2.87]
[1755381940812,2.92,188.38,188.3,2.87]
[1755381941014,2.92,188.36,188.3,2.87]
[1755381941314,2.92,188.34,188.3,2.87]
[1755381941816,2.92,188.33,188.3,2.87]
[1755381942705,2.92,188.38,188.3,2.87]
[1755381942909,2.92,188.36,188.33,2.87]
[1755381943109,2.92,188.4,188.33,2.87]
[1755381943314,2.92,188.38,188.33,2.87]
[1755381943512,4.08047193,188.37,188.32,1.98877111]
[1755381943713,4.38863958,188.41,188.32,1.98877111]
[1755381944019,2.92,188.39,188.33,2.87]
[1755381944317,2.92,188.37,188.34,2.87]
[1755381944518,2.92,188.37,188.33,2.87]
[1755381945716,2.92,188.37,188.32,1.98877111]
[1755381946016,2.92,188.4,188.32,4.85877111]
[1755381946321,4.08026447,188.39,188.33,2.87]
[1755381946616,2.92,188.37,188.33,2.87]
[1755381946818,2.92,188.36,188.33,2.87]
[1755381947320,2.92,188.35,188.34,2.87]
[1755381947814,4.38863958,188.42,188.33,2.87]
[1755381947815,2.92,188.34,188.33,2.87]
[1755381949323,3.06,188.33,188.32,4.81877111]
[1755381949515,3.06,188.4,188.32,4.81877111]
[1755381949717,3.06,188.38,188.32,4.81877111]
[1755381950019,3.06,188.36,188.32,4.81877111]
[1755381950418,4.38863958,188.41,188.33,2.83]
[1755381950624,3.06,188.39,188.33,2.83]
[1755381950820,3.06,188.37,188.34,2.83]
[1755381951020,3.06,188.36,188.35,2.83]
[1755381952323,7.14448197,188.36,188.35,2.83]
[1755381954718,7.14448197,188.36,188.32,1.98877111]
[1755381954925,7.14448197,188.35,188.34,2.83]
[1755381956019,4.08448197,188.35,188.34,2.83]
[1755381956929,4.38863958,188.4,188.34,2.83]
[1755381957126,3.06,188.38,188.34,2.83]
[1755381957328,4.09483251,188.37,188.34,2.83]
[1755381957526,4.09483251,188.36,188.34,2.83]
[1755381957724,3.06,188.38,188.34,2.83]
[1755381958033,3.06,188.36,188.35,2.83]
[1755381958218,7.15581538,188.36,188.35,2.83]
[1755381959133,3.06,188.35,188.34,2.83]
[1755381960224,7.15671014,188.35,188.34,2.83]
[1755381960421,3.06,188.35,188.32,4.81877111]
[1755381960829,3.06,188.35,188.33,2.83]
[1755381961030,3.06,188.34,188.33,2.83]
[1755381961928,3.06,188.33,188.29,2.83]
[1755381962126,3.06,188.31,188.29,2.83]
[1755381962327,3.06,188.3,188.27,1.98877111]
[1755381963133,3.06,188.3,188.28,2.83]
[1755381963633,3.06,188.3,188.29,2.83]
[1755381966727,3.06,188.36,188.29,3.37]
[1755381966933,3.06,188.36,188.34,2.83]
[1755381966934,4.09589921,188.35,188.34,2.83]
[1755381967439,7.15589921,188.35,188.34,2.83]
[1755381968836,4.09589921,188.35,188.34,2.83]
[1755381969135,4.09591049,188.36,188.34,2.83]
[1755381969434,4.09591049,188.35,188.34,2.83]
[1755381969634,7.15591049,188.35,188.34,2.83]
[1755381969936,3.06,188.34,188.33,4.81877111]
[1755381970235,4.45540653,188.4,188.32,2.83]
[1755381970433,4.45540653,188.4,188.3,1.98877111]
[1755381970434,3.06,188.38,188.31,2.83]
[1755381970636,3.06,188.36,188.31,2.83]
[1755381970830,3.06,188.34,188.31,2.83]
[1755381971329,3.06,188.33,188.32,2.83]
[1755381973031,3.06,188.35,188.32,2.83]
[1755381973428,4.45540653,188.39,188.33,1.98877111]
[1755381973634,3.06,188.37,188.34,2.83]
[1755381974135,4.09791535,188.36,188.34,2.83]
[1755381974333,4.09791535,188.35,188.34,2.83]
[1755381976334,7.15791535,188.35,188.34,2.83]
[1755381976535,4.09791535,188.35,188.33,1.98877111]
[1755381976736,3.06,188.34,188.33,1.98877111]
[1755381976935,3.06,188.34,188.33,4.81877111]
[1755381977838,3.06,188.33,188.3,43.98877111]
[1755381978137,7.51692064,188.39,188.3,46.81877111]
[1755381978327,3.06,188.37,188.31,2.83]
[1755381978531,3.06,188.35,188.32,2.83]
[1755381981039,3.12,188.34,188.33,2.85]
[1755381982341,3.12,188.38,188.33,2.85]
[1755381982549,3.12,188.38,188.31,5.3069]
[1755381982550,4.09864802,188.37,188.34,2.85]
[1755381982741,3.12,188.35,188.34,2.85]
[1755381982941,7.21864802,188.35,188.34,2.85]
[1755381983338,7.21864802,188.35,188.32,2.85]
[1755381983638,3.12,188.34,188.33,2.85]
[1755381984842,3.12,188.38,188.34,2.85]
[1755381985043,3.12,188.36,188.34,2.85]
[1755381985343,7.21886544,188.35,188.34,2.85]
[1755381991048,4.09886544,188.35,188.33,1.98877111]
[1755381991248,3.12,188.35,188.33,4.83877111]
[1755381991646,3.12,188.38,188.33,4.83877111]
[1755381991852,4.10019774,188.37,188.34,2.85]
[1755381992051,3.12,188.35,188.34,2.85]
[1755381992250,7.22019774,188.35,188.34,2.85]
[1755381992747,4.10019774,188.35,188.34,2.85]
[1755381992954,3.12,188.39,188.33,1.98877111]
[1755381993147,4.10014484,188.38,188.35,2.85]
[1755381993352,3.12,188.36,188.35,2.85]
[1755381993654,7.22014484,188.36,188.35,2.85]
[1755381994355,4.10014484,188.36,188.35,2.85]
[1755381995651,3.12,188.4,188.35,2.85]
[1755381995851,3.12,188.38,188.37,2.85]
[1755381996060,7.21947349,188.38,188.37,2.85]
[1755381999259,4.09947349,188.38,188.37,2.85]
[1755382000051,4.09947349,188.38,188.37,8.1552]
[1755382000253,3.12,188.41,188.37,2.85]
[1755382000467,3.12,188.4,188.37,2.85]
[1755382000864,4.45692064,188.43,188.36,2.85]
[1755382001464,3.12,188.42,188.36,2.85]
[1755382002467,3.12,188.42,188.34,2.85]
[1755382004867,7.57692064,188.42,188.34,2.85]
[1755382005067,3.12,188.42,188.34,2.85]
[1755382009069,2.88,188.41,188.34,2.85]
[1755382009375,2.88,188.38,188.32,2.95]
[1755382012276,2.88,188.36,188.32,2.95]
[1755382012579,4.07676646,188.37,188.32,2.95]
[1755382012580,2.88,188.34,188.32,2.95]
[1755382014275,4.45692064,188.39,188.32,2.95]
[1755382014276,2.88,188.38,188.33,2.95]
[1755382014473,6.95672864,188.37,188.33,2.95]
[1755382014673,6.95672864,188.36,188.33,2.95]
[1755382014874,4.07672864,188.35,188.33,2.95]
[1755382015178,2.88,188.36,188.33,2.95]
[1755382015370,4.07668532,188.35,188.33,2.95]
[1755382015571,2.88,188.36,188.33,2.95]
[1755382015771,4.07666824,188.35,188.33,2.95]
[1755382015969,2.88,188.36,188.33,2.95]
[1755382016168,4.07666824,188.35,188.33,2.95]
[1755382016374,2.88,188.36,188.33,2.95]
[1755382016574,4.07664543,188.35,188.33,2.95]
[1755382016775,2.88,188.36,188.33,2.95]
[1755382016975,4.07664543,188.35,188.33,2.95]
[1755382017172,2.88,188.36,188.33,2.95]
[1755382017374,4.07671423,188.35,188.33,2.95]
[1755382017570,2.88,188.36,188.33,2.95]
[1755382017779,4.07673702,188.35,188.33,2.95]
[1755382017974,2.88,188.36,188.33,2.95]
[1755382018281,2.88,188.34,188.32,1.98877111]
[1755382018873,4.45692064,188.38,188.33,2.95]
[1755382019073,2.88,188.36,188.33,2.95]
[1755382019277,4.07676903,188.35,188.33,2.95]
[1755382019577,4.07676903,188.34,188.33,2.95]
[1755382020581,6.95676903,188.34,188.33,2.95]
[1755382021877,4.07676903,188.34,188.33,2.95]
[1755382022581,2.88,188.37,188.33,2.95]
[1755382022784,4.07673054,188.36,188.33,2.95]
[1755382022985,2.88,188.35,188.33,2.95]
[1755382024283,2.88,188.35,188.34,2.95]
[1755382025283,2.88,188.35,188.32,1.98877111]
[1755382025590,2.88,188.35,188.32,4.93877111]
[1755382025983,4.0761605,188.34,188.31,2.95]
[1755382026187,2.88,188.32,188.23,2.95]
[1755382026384,2.88,188.3,188.25,5.3086]
[1755382026684,2.88,188.3,188.25,2.95]
[1755382029090,2.88,188.3,188.24,1.98877111]
[1755382029288,2.88,188.3,188.25,8.2586]
[1755382029488,2.88,188.3,188.27,2.95]
[1755382029990,2.88,188.3,188.24,1.98877111]
[1755382030290,2.88,188.3,188.25,5.3085]
[1755382030584,2.88,188.3,188.24,7.29757111]
[1755382030990,2.88,188.3,188.26,2.95]
[1755382031391,2.88,188.3,188.27,2.95]
[1755382031689,2.88,188.3,188.25,5.3086]
[1755382031890,2.88,188.29,188.26,8.2583]
[1755382032094,2.88,188.34,188.27,1.98877111]
[1755382032289,4.06889504,188.33,188.28,2.95]
[1755382032486,4.46009283,188.37,188.28,2.95]
[1755382032683,2.88,188.35,188.28,2.95]
[1755382032884,2.88,188.33,188.28,2.95]
[1755382033484,4.46009283,188.39,188.29,5.3072]
[1755382033683,2.88,188.32,188.3,2.95]
[1755382034091,2.88,188.32,188.3,4.93877111]
[1755382034394,2.88,188.32,188.31,2.95]
[1755382035992,4.46009283,188.39,188.3,1.98877111]
[1755382036196,2.88,188.37,188.27,4.93877111]
[1755382036489,2.88,188.35,188.27,4.93877111]
[1755382036796,2.88,188.33,188.27,10.24677111]
[1755382038091,2.88,188.33,188.27,7.29677111]
[1755382038287,2.88,188.33,188.29,2.95]
[1755382038690,2.88,188.33,188.3,2.97]
[1755382039896,2.88,188.33,188.31,2.97]
[1755382042799,2.86,188.37,188.31,2.97]
[1755382043004,2.86,188.35,188.31,2.97]
[1755382043198,2.86,188.33,188.31,2.97]
[1755382043603,2.86,188.38,188.33,2.97]
[1755382043902,2.86,188.36,188.32,8.2766]
[1755382044094,2.86,188.36,188.33,2.97]
[1755382044900,2.86,188.36,188.32,8.2766]
[1755382045299,2.86,188.36,188.33,2.97]
[1755382046197,2.86,188.37,188.36,2.97]
[1755382046401,4.06881392,188.37,188.36,2.97]
[1755382046702,2.86,188.42,188.36,2.97]
[1755382046891,2.86,188.4,188.38,2.97]
[1755382047096,4.06901454,188.39,188.38,2.97]
[1755382047296,2.86,188.39,188.38,2.97]
[1755382047505,6.92901454,188.39,188.38,2.97]
[1755382047995,2.86,188.39,188.38,2.97]
[1755382052605,2.86,188.43,188.38,2.97]
[1755382052806,2.86,188.41,188.38,2.97]
[1755382053101,4.06898147,188.4,188.38,2.97]
[1755382053307,2.86,188.44,188.39,2.97]
[1755382053599,2.86,188.42,188.39,2.97]
[1755382053805,6.9289927,188.41,188.39,2.97]
[1755382054006,2.86,188.44,188.39,2.97]
[1755382054206,2.86,188.42,188.4,2.97]
[1755382054402,6.92836773,188.41,188.38,2.97]
[1755382054602,4.46009283,188.45,188.38,2.97]
[1755382054603,2.86,188.39,188.38,4.95877111]
[1755382054802,2.86,188.4,188.39,2.97]
[1755382065115,2.86,188.41,188.38,7.29377111]
[1755382065413,2.86,188.4,188.39,2.97]
[1755382068311,2.76,188.4,188.39,2.97]
[1755382071820,2.88,188.45,188.39,2.97]
[1755382072021,2.88,188.43,188.39,2.97]
[1755382072218,4.06062306,188.42,188.39,2.97]
[1755382072423,2.88,188.46,188.39,2.83]
[1755382072616,2.88,188.44,188.39,2.83]
[1755382073014,2.88,188.44,188.4,5.3045]
[1755382073215,2.88,188.44,188.41,2.83]
[1755382073414,2.88,188.44,188.42,2.83]
[1755382073610,2.88,188.44,188.4,5.3045]
[1755382073818,2.88,188.44,188.41,2.83]
[1755382074720,2.88,188.44,188.4,5.3045]
[1755382075023,2.88,188.44,188.42,2.83]
[1755382076421,2.88,188.44,188.4,5.3045]
[1755382076620,2.88,188.44,188.41,2.83]
[1755382076816,4.46009283,188.49,188.42,2.83]
[1755382077020,5.95267119,188.52,188.42,2.83]
[1755382077021,4.06270825,188.48,188.42,2.83]
[1755382077215,4.06270825,188.48,188.41,1.98877111]
[1755382077216,2.88,188.46,188.41,1.98877111]
[1755382077420,2.88,188.46,188.41,4.81877111]
[1755382077622,2.88,188.46,188.42,2.83]
[1755382078322,2.88,188.46,188.43,2.83]
[1755382081939,2.88,188.49,188.43,2.83]
[1755382082242,2.88,188.47,188.43,2.83]
[1755382082441,2.88,188.45,188.43,2.83]
[1755382082642,2.88,188.47,188.44,4.81877111]
[1755382082846,4.06375888,188.46,188.45,2.83]
[1755382083134,2.88,188.47,188.45,2.83]
[1755382084644,4.46009283,188.52,188.45,2.83]
[1755382084836,4.06475244,188.51,188.45,2.83]
[1755382085036,2.88,188.49,188.45,2.83]
[1755382085237,2.88,188.47,188.45,2.83]
[1755382085649,2.88,188.46,188.45,2.83]
[1755382086343,2.88,188.51,188.45,2.83]
[1755382086642,2.88,188.49,188.45,2.83]
[1755382086840,2.88,188.47,188.46,2.83]
[1755382089339,2.88,188.47,188.41,1.98877111]
[1755382089541,4.06701037,188.46,188.41,2.83]
[1755382089738,2.88,188.45,188.41,2.83]
[1755382090636,2.88,188.45,188.38,2.83]
[1755382091038,2.88,188.43,188.38,2.83]
[1755382091434,2.88,188.42,188.38,2.83]
[1755382092047,2.88,188.42,188.39,5.3048]
[1755382092243,2.88,188.42,188.4,2.83]
[1755382092442,2.88,188.42,188.41,2.83]
[1755382093235,2.88,188.42,188.37,1.98877111]
[1755382093442,2.88,188.42,188.35,398.52]
[1755382093443,2.88,188.42,188.36,2.83]
[1755382093640,2.88,188.4,188.36,2.83]
[1755382094845,2.88,188.4,188.34,2.83]
[1755382095051,2.88,188.38,188.29,2.83]
[1755382095345,2.88,188.36,188.29,2.83]
[1755382095744,2.88,188.34,188.26,2.83]
[1755382096044,6.44886394,188.39,188.26,2.83]
[1755382096045,2.88,188.32,188.26,2.83]
[1755382100958,2.88,188.32,188.26,5.3084]
[1755382101156,2.88,188.32,188.28,3.05]
[1755382103962,2.88,188.32,188.29,3.05]
[1755382104366,2.88,188.32,188.26,3.05]
[1755382104660,2.88,188.32,188.29,3.05]
[1755382105056,2.92,188.4,188.29,3.05]
[1755382105258,2.92,188.38,188.29,3.05]
[1755382105462,2.92,188.36,188.29,3.05]
[1755382108165,2.92,188.36,188.27,3.05]
[1755382108462,2.92,188.34,188.26,3.05]
[1755382115571,7.79,188.33,188.26,3.05]
[1755382115767,2.92,188.32,188.26,3.05]
[1755382120282,2.92,188.32,188.25,5.03877111]
[1755382120680,2.92,188.32,188.26,3.05]
[1755382122181,2.92,188.32,188.25,1.98877111]
[1755382122381,2.92,188.32,188.25,5.03877111]
[1755382122778,2.92,188.32,188.26,3.05]
[1755382125687,4.04249772,188.31,188.2,5.03877111]
[1755382125979,2.92,188.3,188.21,3.05]
[1755382128789,2.92,188.3,188.23,1.98877111]
[1755382128989,2.92,188.3,188.24,2.99]
[1755382130687,2.92,188.3,188.26,1.98877111]
[1755382130894,2.92,188.3,188.27,2.99]
[1755382131294,7.79,188.33,188.27,2.99]
[1755382131592,2.81,188.29,188.25,2.99]
[1755382132292,2.81,188.28,188.25,2.99]
[1755382132694,10.6,188.33,188.28,2.99]
[1755382132993,2.81,188.32,188.28,2.99]
[1755382134693,7.79,188.33,188.28,2.99]
[1755382134896,2.81,188.31,188.28,2.99]
[1755382135198,2.81,188.3,188.28,2.99]
[1755382135589,2.81,188.32,188.28,2.99]
[1755382135790,6.87162597,188.31,188.28,2.99]
[1755382135990,2.81,188.31,188.28,2.99]
[1755382137397,4.06790712,188.3,188.28,2.99]
[1755382137596,2.81,188.31,188.28,2.99]
[1755382137801,4.06786157,188.3,188.28,2.99]
[1755382138099,2.81,188.3,188.29,2.99]
[1755382138399,6.87785423,188.3,188.29,2.99]
[1755382139098,2.81,188.29,188.25,2.99]
[1755382139297,6.87785423,188.28,188.25,2.99]
[1755382139503,4.06785423,188.27,188.25,2.99]
[1755382139798,2.81,188.28,188.25,2.99]
[1755382139998,4.0756134,188.27,188.25,2.99]
[1755382140198,2.81,188.31,188.25,2.99]
[1755382140403,2.81,188.29,188.25,2.99]
[1755382140697,6.88556775,188.28,188.25,2.99]
[1755382140897,4.07556775,188.27,188.25,2.99]
[1755382141100,2.81,188.28,188.25,2.99]
[1755382141300,4.07634579,188.27,188.25,2.99]
[1755382141594,7.79,188.33,188.2,1.98877111]
[1755382141595,2.81,188.25,188.2,1.98877111]
[1755382141802,2.81,188.23,188.22,2.99]
[1755382144001,2.81,188.23,188.21,2.99]
[1755382144199,2.81,188.22,188.21,2.99]
[1755382147697,2.81,188.28,188.18,2.99]
[1755382147892,2.81,188.26,188.18,2.99]
[1755382148101,7.26237796,188.24,188.18,2.99]
[1755382148400,2.81,188.22,188.14,1.98877111]
[1755382148601,2.81,188.2,188.19,2.99]
[1755382148801,6.88081692,188.2,188.19,2.99]
[1755382149299,2.81,188.2,188.19,2.99]
[1755382149799,6.87628023,188.2,188.19,2.99]
[1755382150200,2.81,188.2,188.19,2.99]
[1755382151100,2.81,188.23,188.16,2.99]
[1755382151403,2.81,188.21,188.17,2.99]
[1755382151803,10.52,188.21,188.17,2.99]
[1755382152002,2.81,188.2,188.17,2.99]
[1755382152205,2.81,188.2,188.15,1.98877111]
[1755382152401,2.81,188.2,188.16,2.99]
[1755382154102,2.81,188.2,188.15,1.98877111]
[1755382154408,2.81,188.2,188.17,2.99]
[1755382159001,2.81,188.2,188.17,2.83]
[1755382159208,2.81,188.2,188.15,2.83]
[1755382159407,2.81,188.2,188.16,2.83]
[1755382159607,2.81,188.2,188.15,2.83]
[1755382169319,2.81,188.2,188.14,1.98877111]
[1755382169520,2.81,188.2,188.17,2.83]
[1755382176728,2.81,188.2,188.18,2.83]
[1755382179123,2.81,188.2,188.19,2.83]
[1755382179323,7.07460581,188.2,188.19,2.83]
[1755382183521,4.05460581,188.2,188.19,2.83]
[1755382184222,7.07460581,188.2,188.19,2.83]
[1755382185325,4.05460581,188.2,188.19,2.83]
[1755382185530,4.05460581,188.2,188.19,4.10525535]
[1755382187631,4.05460581,188.2,188.19,2.83]
[1755382189032,4.05460581,188.2,188.19,4.10525535]
[1755382194138,4.45237796,188.25,188.19,9.41565535]
[1755382194436,2.98,188.27,188.23,1.27525535]
[1755382194738,2.98,188.27,188.23,4.18525535]
[1755382195735,2.98,188.27,188.24,2.91]
[1755382198843,2.98,188.27,188.23,1.27525535]
[1755382199040,7.43237796,188.25,188.19,2.91]
[1755382199241,2.98,188.24,188.19,2.91]
[1755382199842,2.98,188.24,188.18,1.27525535]
[1755382200045,2.98,188.24,188.2,2.91]
[1755382201947,1.27525535,188.24,188.18,1.27525535]
[1755382202156,4.45237796,188.26,188.23,2.91]
[1755382202348,2.98,188.26,188.23,2.91]
[1755382202550,2.98,188.26,188.25,2.91]
[1755382202749,11.98237796,188.29,188.25,2.91]
[1755382202944,7.53,188.29,188.25,2.91]
[1755382203651,7.53,188.29,188.28,2.91]
[1755382207256,10.51,188.29,188.28,2.91]
[1755382207857,2.98,188.28,188.25,2.91]
[1755382208061,2.98,188.28,188.26,2.91]
[1755382208653,2.98,188.28,188.24,2.91]
[1755382208856,2.98,188.28,188.22,2.91]
[1755382213151,4.01623707,188.27,188.22,2.91]
[1755382213360,2.98,188.26,188.2,2.91]
[1755382218163,2.98,188.24,188.18,1.99066175]
[1755382218362,2.98,188.24,188.19,2.91]
[1755382218964,3.11,188.23,188.19,2.91]
[1755382220562,3.11,188.23,188.19,8.2204]
[1755382220863,3.11,188.23,188.2,2.85]
[1755382221259,3.11,188.22,188.2,2.85]
[1755382221460,3.11,188.23,188.2,2.85]
[1755382222966,3.11,188.22,188.2,2.85]
[1755382226464,3.11,188.22,188.18,1.99066175]
[1755382226666,3.11,188.22,188.19,2.85]
[1755382228565,3.11,188.22,188.15,7.30216175]
[1755382228765,3.11,188.22,188.17,2.85]
[1755382229071,3.11,188.22,188.15,7.30216175]
[1755382229371,3.11,188.22,188.18,2.85]
[1755382229967,4.02379251,188.21,188.16,2.85]
[1755382230167,3.11,188.2,188.17,2.85]
[1755382231470,3.11,188.2,188.18,2.85]
[1755382231665,11.11,188.22,188.14,5.3118]
[1755382231868,11.11,188.22,188.13,1.99066175]
[1755382231869,7.1346944,188.21,188.13,1.99066175]
[1755382232065,7.1346944,188.2,188.13,1.99066175]
[1755382232269,3.11,188.2,188.13,1.99066175]
[1755382232471,3.11,188.2,188.14,2.85]
[1755382232773,3.11,188.2,188.17,2.85]
[1755382234671,14.22,188.22,188.2,2.85]
[1755382234878,11.11,188.22,188.2,2.85]
[1755382235576,14.22,188.22,188.2,2.85]
[1755382237375,11.11,188.22,188.21,2.85]
[1755382237578,3.11,188.28,188.21,2.85]
[1755382237777,3.11,188.26,188.24,2.85]
[1755382237976,4.0283454,188.25,188.24,2.85]
[1755382238178,7.1383454,188.25,188.24,2.85]
[1755382241783,3.11,188.24,188.2,1.99066175]
[1755382242288,3.11,188.22,188.2,4.84066175]
[1755382242578,3.11,188.22,188.2,1.99066175]
[1755382242783,3.11,188.22,188.18,2.85]
[1755382242983,3.11,188.22,188.19,2.85]
[1755382243180,3.11,188.22,188.18,2.85]
[1755382243380,3.11,188.26,188.19,2.85]
[1755382243580,3.11,188.24,188.19,2.85]
[1755382243781,3.11,188.22,188.19,2.85]
[1755382244180,3.11,188.21,188.19,2.85]
[1755382244684,3.11,188.26,188.18,2.85]
[1755382244886,3.11,188.24,188.18,2.85]
[1755382245086,4.02470681,188.23,188.18,2.85]
[1755382245282,3.11,188.22,188.18,2.85]
[1755382250976,4.45237796,188.27,188.18,2.85]
[1755382251179,2.97,188.25,188.18,2.85]
[1755382251388,2.97,188.23,188.18,2.85]
[1755382251586,2.97,188.21,188.18,2.85]
[1755382252187,2.97,188.21,188.18,5.3107]
[1755382252386,2.97,188.21,188.19,2.84]
[1755382255591,2.97,188.23,188.2,2.84]
[1755382255788,4.03114337,188.22,188.21,2.84]
[1755382256090,4.03114337,188.22,188.21,8.1498]
[1755382256886,2.97,188.24,188.22,2.84]
[1755382257086,4.03202899,188.23,188.22,2.84]
[1755382259184,7.00202899,188.23,188.22,2.84]
[1755382260592,2.97,188.23,188.22,2.84]
[1755382260992,2.97,188.23,188.2,4.83066175]
[1755382261489,2.97,188.23,188.21,2.84]
[1755382261692,2.97,188.27,188.22,2.84]
[1755382261888,4.02986991,188.26,188.2,1.99066175]
[1755382262095,6.99986991,188.25,188.23,2.84]
[1755382262293,6.99986991,188.24,188.23,2.84]
[1755382265194,4.02986991,188.24,188.23,1.99066175]
[1755382265394,4.02986991,188.24,188.23,4.83066175]
[1755382266294,6.99986991,188.24,188.23,4.83066175]
[1755382269094,4.02986991,188.24,188.23,4.83066175]
[1755382269494,2.97,188.26,188.23,10.13986175]
[1755382269793,10.27,188.29,188.24,133.24]
[1755382269989,10.27,188.29,188.28,4.83066175]
[1755382270891,2.97,188.29,188.28,4.83066175]
[1755382273091,2.97,188.35,188.29,2.84]
[1755382273291,2.97,188.35,188.32,2.84]
[1755382273493,4.45237796,188.39,188.34,1.99066175]
[1755382273795,2.97,188.38,188.34,1.99066175]
[1755382274099,2.97,188.37,188.35,2.84]
[1755382274394,2.97,188.36,188.34,1.99066175]
[1755382274895,2.97,188.36,188.35,2.84]
[1755382277793,2.97,188.37,188.35,2.84]
[1755382278398,2.97,188.37,188.35,8.1457]
[1755382278599,2.97,188.37,188.36,2.84]
[1755382279896,2.99,188.44,188.34,1.99066175]
[1755382280199,2.99,188.44,188.39,1.99066175]
[1755382283701,5.45,188.44,188.39,1.99066175]
[1755382283902,2.99,188.43,188.39,1.99066175]
[1755382284199,2.99,188.43,188.33,4.82066175]
[1755382284403,2.99,188.43,188.33,1.99066175]
[1755382284599,2.99,188.43,188.34,2.83]
[1755382286307,2.99,188.43,188.36,1.99066175]